Cogmind - Beta 16 @@@ ROGUE MODE // 2026.01.17 @ 16:04:58 Player: Mxykikker Result: Destroyed by X5-YVQ(R) with Subdweller Machine Gun Performance ------------- Evolutions (0) 0 Regions Visited (2) 400 Robots Destroyed (38) 190 Value Destroyed (960) 960 Prototype IDs (0) 0 Alien Tech Used (0) 0 Bonus (0) 0 TOTAL SCORE: 1550 Bonus ------- None Cogmind --------- Core Integrity 0/250 Matter 300/300 Energy 105/125 System Corruption 0% Temperature Cool (0) Movement Treading (160) Location -10/Subcaves Parts ------- > --- POWER (1) -------- Light Ion Engine > --- PROPULSION (2) --- Spiked Treads Spiked Treads > --- UTILITY (2) ------ Scrap Shield > --- WEAPON (2) ------- Subdweller Beam Cannon Subdweller Beam Cannon > --- INVENTORY (5) ---- Humpback Machine Analyzer Subdweller Laser Subdweller Shrapnel Launcher Peak State ------------ > --- POWER ------------ Light Ion Engine > --- PROPULSION ------- Spiked Treads Spiked Treads > --- UTILITY ---------- Scrap Shield > --- WEAPON ----------- Subdweller Laser Subdweller Machine Gun > --- INVENTORY -------- Humpback Grenade Launcher [Rating: 13] Favorites ----------- Power Light Ion Engine Engine Light Ion Engine Propulsion Spiked Treads Treads Spiked Treads Wheel Wheel Utility Scrap Shield Device Seismic Detector Storage Large Storage Unit Protection Scrap Shield Weapon Subdweller Laser Energy Gun Subdweller Laser Energy Cannon Subdweller Beam Cannon Ballistic Gun Subdweller Machine Gun Ballistic Cannon Light Cannon Launcher Grenade Launcher Build | -11 -10 -10 ------- Run | Yrd Mat Sub Slots Evolved . | . . . Power . | . . . Propulsion . | . . . Utility . | . . . Weapon . | . . . Parts Attached 32 | 9 10 13 Power 4 | 1 3 . Engine 4 | 1 3 . Core . | . . . Reactor . | . . . Propulsion 10 | 4 2 4 Treads 6 | 2 . 4 Leg . | . . . Wheel 4 | 2 2 . Hover . | . . . Flight . | . . . Utility 6 | 2 2 2 Device 1 | 1 . . Storage 2 | 1 1 . Processor . | . . . Hackware . | . . . Protection 3 | . 1 2 Artifact . | . . . Weapon 12 | 2 3 7 Energy Gun 2 | 1 . 1 Energy Cannon 5 | . 1 4 Ballistic Gun 3 | 1 . 2 Ballistic Cannon 1 | . 1 . Launcher 1 | . 1 . Special Weapon . | . . . Impact Weapon . | . . . Slashing Weapon . | . . . Piercing Weapon . | . . . Special Melee Weapon . | . . . Unidentified Prototypes . | . . . Parts Lost 3 | . 1 2 Power 1 | . 1 . Propulsion . | . . . Utility 1 | . . 1 Weapon 1 | . . 1 Highest Loss Streak 2 | . 1 2 To Critical Strikes . | . . . Average Backups 7 | 2 8 7 Power . | . . . Propulsion 1 | 1 3 . Utility 3 | . 2 3 Weapon 1 | . 1 2 Tool/Special . | . . . Unused Backups 11 | 1 . 10 Power . | . . . Propulsion 2 | . . 2 Utility 6 | . . 6 Weapon 3 | 1 . 2 Tool/Special . | . . . Average Slot Usage (%) 92 | . 98 88 Engine 13 | . 12 14 Treads 18 | . 2 28 Wheel 9 | . 25 . Device 4 | . 12 . Storage 8 | . 14 5 Protection 8 | . 1 12 Energy Gun 9 | . 10 9 Energy Cannon 6 | . 3 8 Ballistic Gun 6 | . 2 8 Ballistic Cannon 2 | . 4 . Launcher 2 | . 6 . Peak Build Rating 13 | 7 8 13 Average Rating 10 | 5 7 12 On Entrance 5 | . 7 8 Avg Prop Armor Cover (%) . | . . . Naked Turns . | . . . Heaviest Build 37 | 12 34 37 Greatest Support 40 | 40 40 40 Greatest Overweight (x) 1 | . 1 . Average Overweight (x) . | . . . Largest Inventory Capacity 15 | 8 15 15 Average Capacity 9 | 7 10 8 Most Carried 15 | 6 15 15 Average Carried 8 | 2 8 8 Final Capacity 15 | 8 15 5 Final Carried 14 | 6 14 5 Class Distribution -------------------- 47% | Mutant 38% | Subdweller-Mutant 14% | Scavenger-Mutant Dominant Class ---------------- Mutant | -10/Materials Subdweller-Mutant | -10/Subcaves Resources | -11 -10 -10 ----------- Run | Yrd Mat Sub Matter Collected 933 | 314 323 296 Remotely . | . . . Salvage Created 973 | 134 387 452 Parts 75 | 12 28 35 Haulers Intercepted 1 | . 1 . Recyclers Shooed 2 | 1 1 . Parts Field Recycled . | . . . Retrieved Matter . | . . . Parts Self-Destructed 18 | . . 18 Prevented . | . . . Parts Restored . | . . . Kills | -11 -10 -10 ------- Run | Yrd Mat Sub Combat Hostiles Destroyed 28 | . 14 14 Guns 11 | . 4 7 Cannons 9 | . 2 7 AOE 8 | . 8 . Classes Destroyed 10 | 2 5 3 Worker 3 | . 3 . Tunneler 3 | 3 . . Hauler 1 | . 1 . Recycler 1 | 1 . . Operator 1 | . 1 . Turret 1 | . . 1 Swarmer 8 | . 4 4 Grunt 12 | . 10 2 Sentry 1 | . . 1 Subdweller 7 | . . 7 Best Kill Streak 4 | 4 4 3 Combat Bots Only 3 | . 3 3 Max Kills in Single Turn 3 | 1 3 1 Gunslinging . | . . . Exploded 2 | . 2 . Melee . | . . . Uniques/NPCs Destroyed . | . . . Combat | -11 -10 -10 -------- Run | Yrd Mat Sub Hostile Shots Fired 193 | . 62 131 Missed 66 | . 22 44 Hits 127 | . 40 87 Projectile 127 | . 40 87 Critical Strikes 1 | . . 1 Damage Taken 1756 | . 461 1295 Core 252 | . 132 120 Absorbed by Shields . | . . . Core Remaining (%) 100 | 100 . . Volleys Fired 106 | 8 38 60 Largest 2 | 2 2 2 Hottest 160 | 60 90 160 Shots Fired 183 | 16 67 100 Gun 113 | 16 41 56 Cannon 53 | . 14 39 Launcher 17 | . 12 5 Special . | . . . Kinetic 69 | 8 22 39 Thermal 97 | 8 33 56 Explosive 17 | . 12 5 Electromagnetic . | . . . Robot Hit Streak 19 | 3 6 19 Robot Miss Streak 4 | 4 4 3 Penetration Max . | . . . Secondary Targets . | . . . Shots Hit Robots 109 | 8 30 71 Core Hits 64 | 5 30 29 Critical Kills . | . . . Critical Parts Destroyed . | . . . Critical Strikes 1 | . . 1 Blast 1 | . . 1 Melee Attacks . | . . . Impact . | . . . Slashing . | . . . Piercing . | . . . Sneak Attacks . | . . . Combat Hostiles . | . . . Follow-up Attacks . | . . . Damage Inflicted 2773 | 95 1224 1454 Guns 1192 | 95 303 794 Cannons 661 | . 112 549 Explosions 920 | . 809 111 Melee . | . . . Ramming . | . . . Kinetic 768 | 61 189 518 Thermal 1085 | 34 226 825 Explosive 920 | . 809 111 Electromagnetic . | . . . Impact . | . . . Slashing . | . . . Piercing . | . . . Highest Corruption . | . . . Average Corruption . | . . . Corruption Purged . | . . . Corruption Blocked . | . . . Overload Shots . | . . . Overflow Damage 6 | . 6 . Projectiles 1 | . 1 . Explosions 5 | . 5 . Melee . | . . . Knockbacks 2 | . . 2 Impact . | . . . Kinetic 2 | . . 2 Secondary . | . . . Self-Inflicted Damage . | . . . Shots . | . . . Rammed . | . . . Targets Rammed . | . . . Kicked . | . . . Crushed . | . . . Highest Temperature 94 | . 94 78 Average Temperature 32 | . 34 22 Received Heat Transfer 423 | . 186 237 Siege Activations . | . . . Martial Activations . | . . . Shielding Activations . | . . . Robots Disrupted . | . . . Combat Hostiles . | . . . Robots Corrupted . | . . . Combat Hostiles . | . . . Parts Fried . | . . . Impact Corruptions . | . . . Robots Melted . | . . . Combat Hostiles . | . . . Parts Melted . | . . . Heat Transferred 1914 | 75 525 1314 Parts Sabotaged . | . . . Parts Stolen . | . . . Parts Stripped . | . . . Power Chain Reactions . | . . . Alert | -11 -10 -10 ------- Run | Yrd Mat Sub Maximum Alert Level 1 | . 1 . Low Security (%) 97 | 100 97 . Level 1 2 | . 2 . Level 2 . | . . . Level 3 . | . . . Level 4 . | . . . Level 5 . | . . . High Security . | . . . Max Security . | . . . Peak Influence 229 | 10 229 . Initial . | . . . Average 89 | 1 102 . Influence Increases 805 | 20 555 230 Destroy 0b10 Robot/C 440 | . 280 160 Destroy 0b10 Robot/NC 45 | 20 25 . Destroy Leader 62 | . 52 10 Successful Hack 15 | . 15 . Select Force Hacks 30 | . 30 . Disable Machine 45 | . 45 . Destroy Structure 78 | . 78 . Lose Combat Pursuer 90 | . 30 60 Influence Decreases 805 | 20 520 265 Entered New Map 18 | . . 18 Time Decay 607 | 20 360 227 Lost Part 30 | . 10 20 Purge Threat 150 | . 150 . Squads Dispatched 2 | . 2 . Investigation 1 | . 1 . Extermination . | . . . Reinforcement 1 | . 1 . Assault . | . . . Garrison . | . . . Intercept . | . . . Searches Triggered . | . . . Construction Impeded . | . . . Haulers Reinforced . | . . . Active Scanning Responses . | . . . Cargo Convoy Interrupts . | . . . Stealth | -11 -10 -10 --------- Run | Yrd Mat Sub Distress Signals 1 | . 1 . Communications Jammed . | . . . Distress Signals . | . . . Times Spotted 45 | . 23 22 Peak Tracking Total 4 | . 4 4 Tactical Retreats 4 | . 1 3 Traps | -11 -10 -10 ------- Run | Yrd Mat Sub Traps Triggered 5 | . 1 4 Indirectly . | . . . Trap Hack Attempts . | . . . Triggered . | . . . Disarmed . | . . . Reprogrammed . | . . . Reused . | . . . Traps Extracted . | . . . Installed . | . . . Triggered . | . . . Machines | -11 -10 -10 ---------- Run | Yrd Mat Sub Machines Disabled 6 | . 3 3 Max in Single Turn 2 | . 1 2 Machines Repaired . | . . . Machines Dismantled . | . . . Machines Sabotaged . | . . . Overloaded Fab Kills . | . . . Hacking | -11 -10 -10 --------- Run | Yrd Mat Sub Machines Accessed 9 | . 8 1 Terminals 6 | . 6 . Fabricators . | . . . Repair Stations 1 | . 1 . Recycling Units 1 | . 1 . Scanalyzers . | . . . Garrison Access . | . . . Total Hacks 26 | . 21 5 Successful 21 | . 16 5 Failed 5 | . 5 . Catastrophic . | . . . Database Lockouts . | . . . Manual 18 | . 18 . Terminals 16 | . 16 . Fabricators . | . . . Repair Stations 1 | . 1 . Recycling Units 4 | . 4 . Scanalyzers . | . . . Garrison Access . | . . . Terminal Hacks 8 | . 3 5 Record 5 | . . 5 Part Schematic 1 | . 1 . Unreport Threat 1 | . 1 . Hauler Manifests 1 | . 1 . Fabricator Hacks . | . . . Repair Station Hacks . | . . . Recycling Unit Hacks 1 | . 1 . Report Inventory 1 | . 1 . Scanalyzer . | . . . Garrison Access Hacks . | . . . Unauthorized Hacks 12 | . 12 . Terminals 9 | . 9 . Botnet 4 | . 4 . Skim 5 | . 5 . Fabricators . | . . . Repair Stations 1 | . 1 . Mechanics 1 | . 1 . Recycling Units 2 | . 2 . Mask 1 | . 1 . Tunnel 1 | . 1 . Scanalyzers . | . . . Garrison Access . | . . . Data Cores Recovered . | . . . Used . | . . . Hacking Detections 2 | . 2 . Full Trace Events . | . . . Feedback Events . | . . . Feedback Blocked . | . . . Robot Schematics Acquired . | . . . Robots Built . | . . . Authchips . | . . . Time . | . . . Total Robot Build Rating . | . . . Part Schematics Acquired 1 | . 1 . Parts Built . | . . . Authchips . | . . . Time . | . . . Total Part Build Rating . | . . . Part Studies Acquired . | . . . Parts Repaired . | . . . Time . | . . . Parts Recycled . | . . . Recycled Matter . | . . . Retrieved Matter . | . . . Retrieved Components . | . . . Parts Scanalyzed . | . . . Part Schematics Acquired . | . . . Parts Damaged . | . . . Bothacking | -11 -10 -10 ------------ Run | Yrd Mat Sub Used RIF Installer . | . . . Robots Hacked . | . . . Non-combat . | . . . Combat . | . . . Robot Hacks Applied . | . . . Relay Couplers Released . | . . . Fabnet Peak Effective % . | . . . Robots Rewired . | . . . Allies Hacked . | . . . Hacks Repelled . | . . . Allies | -11 -10 -10 -------- Run | Yrd Mat Sub Total Allies . | . . . Largest Group . | . . . Highest-Rated Group . | . . . Highest-Rated Ally . | . . . Total Orders . | . . . Ally Attacks . | . . . Total Damage . | . . . Kills . | . . . Allies Corrupted . | . . . Allies Melted . | . . . Intel | -11 -10 -10 ------- Run | Yrd Mat Sub Active Infowar (turns) 860 | 45 815 . Seismic 860 | 45 815 . Robot Analysis Total . | . . . Derelict Logs Recovered 2 | . . 2 Drone Launches . | . . . Drone Recoveries . | . . . Exploration | -11 -10 -10 ------------- Run | Yrd Mat Sub Turns Passed 2595 | 132 883 1580 Spaces Moved 1730 | 63 824 843 Core 1 | 1 . . Treads 932 | 47 42 843 Legs . | . . . Wheels 797 | 15 782 . Hover . | . . . Flight . | . . . Fastest Speed 50 | 50 80 160 Average Speed 124 | 139 87 160 Slowest Speed 160 | 160 160 160 Overloaded Moves . | . . . Propulsion Burnouts . | . . . Robots Hopped . | . . . Potential Cave-ins . | . . . Cave-ins Triggered . | . . . Exploration Rate (%) 53 | 5 99 57 Regions Visited 2 Branch Regions 1 Pre-discovered Areas 2 | . 2 . Known Exits Taken . | . . . Unknown Exits Taken 2 | 1 1 . Scrap Searched 11 | . . 11 Spaces Dug . | . . . Terrain Destroyed 85 | . 77 8 Melee . | . . . Projectile 1 | . . 1 AOE 84 | . 77 7 Terrain Rammed . | . . . Walls Destroyed . | . . . Machines Disabled . | . . . Actions | -11 -10 -10 --------- Run | Yrd Mat Sub Total 1984 | 87 919 978 Wait 47 | . 24 23 Move 1728 | 62 823 843 Hop . | . . . Pick Up 26 | 7 11 8 Fast Attach 14 | 7 2 5 Attach 5 | . 3 2 Detach 2 | . 2 . Swap 19 | 2 8 9 Drop 31 | 1 8 22 Fire 106 | 8 38 60 Melee . | . . . Ram . | . . . Kick . | . . . Crush . | . . . Escape Stasis . | . . . Rewire . | . . . Trap . | . . . Miscellaneous 6 | . . 6 Route ------- -11/Scrapyard -10/Materials (discovered 5 exits: [*Mat x3] / [*Min] / *Sub) -10/Subcaves (discovered 3 exits: [*Mat x2] / [*Rec]) History --------- Turn | Location | Event 25 | -11/Scrapyard | Discovered new exit (range 15) 133 | -11/Scrapyard | Entered Materials 226 | -10/Materials | Discovered new exit (range 6) 293 | -10/Materials | Discovered new exit (range 12) 302 | -10/Materials | Build established: Mutant 393 | -10/Materials | Discovered new exit (range 9) 576 | -10/Materials | Discovered new exit (range 16) 605 | -10/Materials | Learned 2 Storage zone layouts 651 | -10/Materials | Learned location of 1 exit from Storage 688 | -10/Materials | Learned Storage emergency access door positions 726 | -10/Materials | Learned 4 Subcaves zone layouts 731 | -10/Materials | Core integrity fell below 50% 733 | -10/Materials | Derelicts attacked the area 749 | -10/Materials | Learned location of Mines (-9) 1005 | -10/Materials | Discovered new exit (range 8) 1016 | -10/Materials | Entered Subcaves 1017 | -10/Subcaves | Approached by a straggling Scientist 1018 | -10/Subcaves | Discovered new exit (range 8) 1214 | -10/Subcaves | A swath of the cavern ceiling suddenly collapsed 1215 | -10/Subcaves | Shifting Twisted Machinery released Battle Rifle 1218 | -10/Subcaves | Shifting Twisted Machinery released Sub. Power Source 1360 | -10/Subcaves | Discovered new exit (range 16) 1373 | -10/Subcaves | Core integrity fell below 20% 1421 | -10/Subcaves | Discovered new exit (range 6) 1493 | -10/Subcaves | Disturbed a concealed Subdweller 1879 | -10/Subcaves | Disturbed a concealed Subdweller 1886 | -10/Subcaves | Build established: Subdweller-Mutant 2060 | -10/Subcaves | Visited Clippyterm 2065 | -10/Subcaves | Learned Factory emergency access door positions 2065 | -10/Subcaves | Learned Factory fabricator intel 2176 | -10/Subcaves | Shifting Twisted Machinery released Sub. Beam Cannon 2318 | -10/Subcaves | Learned Materials stockpile data 2357 | -10/Subcaves | Disturbed a concealed Subdweller 2562 | -10/Subcaves | Ambushed by Subdwellers from Twisted Machinery 2596 | -10/Subcaves | Destroyed by X5-YVQ(R) with Subdweller Machine Gun Last Messages --------------- queries and responses. --DD-NU8 02156_ 9W-UR0(R) destroyed. 02164_ Acquired 18 matter. 02173_ Subatomizers dissect the Sub. Monowheel. Sub. Beam Cannon falls loose from the Twisted Machinery. 02239_ Dropped Sub. Machine Gun. 02239_ Acquired Sub. Beam Cannon. 02318_ Acquired derelict log, extracted data. Data stored: Materials stockpile data. 02357_ XI-1W3(R) angrily emerges from the Twisted Machinery. 02360_ XI-1W3(R) destroyed. 02364_ Scrap Shield Fragment affixed to Scrap Shield (+43). 02367_ Scrap Shield Fragment affixed to Scrap Shield (+49). 02370_ Scrap Shield Fragment affixed to Scrap Shield (+26). 02372_ Acquired 20 matter. Map ----- +----------------------------------------------------+ | ?????????????????????????????????????????????????? | | ?????????????????????????????????????????????????? | | ?????????????????????????????????????????????????? | | ?????????????????????????????????????????????????? | | ?????????????????????????????????????????????????? | | ?????????????????????????????????????????????????? | | ?????????????????????????????????????????????????? | | ?????????????????????????????????????????????????? | | ?????????????????????????????????????????????????? | | ?????????????????????????????????????????????????? | | ?????????????????????????????????????????????????? | | ?????????????????????????????????????????????????? | | ?????????????????????????????????????????????????? | | ?????????????????????????????????????????????????? | | ?????????????????????????????????????????????????? | | ?????????????????????##??????????????????????????? | | ?????????????????????# ??????????????????????????? | | ????????????????????? ######?##?????????????????? | | ?????????????????????? ## ?????????????????? | | ?????????????????????? ??????????????????? | | ??????????????????????# ???????????????????? | | ????????????????###???# #????????????????????? | | ????????????????# #### ##???????????????????? | | ????????????????# ## ##??????????????????? | | ????????????????# ##?????????????????? | | ????????????????# R@ #?????????????????? | | ???????????????## ## #?????????????????? | | ???????????????# ## #?????????????????? | | ???????????????# ""??????????????? | | ???????????????## #### " "" ?????????????? | | ????????????????# ##???# """""" ?????????????? | | ???????????????## #?????# ""##"""""""#?????????? | | ??????????????## ##??###""""##?""? #?????????? | | ??????????????# #### " """"#?? #?????????? | | ??????????????# """" ## ##????????? | | ??????????????## ## " #????????? | | ???????????????###?## " #????????? | | ??????????????####### #?????????? | | ??????????????# ### #????????????? | | ??????????????# ### ### #????????????? | | ???????????????# ## ##??? ?????????? | | ???????????????# ##????? ????????? | | ???????????????# #???????? ??????????? | | ???????????????## ###??????? ??????????? | | ???????????????## #??????????????????????? | | ??????????????## #??????????????????????? | | ??????????????# ##??????????????????????? | | ??????????????# ######???????????????????????? | | ??????????????### #????????????????????????????? | | ???????????????# #????????????????????????????? | +----------------------------------------------------+ Best States ------------- Heat Dissipation 25 Energy Generation 10 Energy Capacity 250 Matter Stores 300 Matter Capacity 300 Sight Range 16 Terrain Scan Density 10 Armor Coverage 800 Evasion (%) 44 Recoil Reduction 2 Item Schematics ----------------- Wheel | -10/Materials | Hacked Robot Schematics ------------------ None Fabricated ------------ Nothing Repaired ---------- Nothing Studied --------- None Alien Tech Used ----------------- None Achievements -------------- None Challenges ------------ None Game ------ Seed ThunderVariableWartreads Manual? 0 Play Time 00:27:48 Cumulative 91.7 hours Start 2025.11.02 @ 11:25:34 End 2026.01.17 @ 16:04:58 Sessions 1 Manual Loads 0 Difficulty Rogue Special Mode None Game No. 143 Rogue 143 Adventurer 0 Explorer 0 Win Type - Total 0 Types 0/0/0/0/0/0/0/0/0/0 Lore% 31 Gallery% 32 Achievement% 26 Wizard Run 0 Options --------- Layout 1 ASCII 0 Keyboard 0 Movement Arrows Keybinds 0 Fullscreen 1 Font 24/Smallcaps Map View 50x35 Zoom Use 0% Tactical HUD 1 Map Filters NONE Filters NONE Steam 1 RUN: 4ec4131c-b89d-44fa-99d0-e74c530651a6